bitfinex/quotes_ETHUSD_20250110
["timestamp","ask_amount","ask_price","bid_price","bid_amount"]
[1736523547577,0.60029853,3255.2,3253.3,3.0738]
[1736523547714,0.03840685,3255.1,3254.5,3.07259]
[1736523547919,0.8094,3255.0,3253.8,3.07332]
[1736523548225,0.0384085,3254.9,3253.4,0.778]
[1736523548429,0.0384085,3254.9,3253.4,3.85164]
[1736523548637,0.8117,3254.4,3253.3,0.35]
[1736523548832,1.3617,3254.0,3253.1,3.07399]
[1736523549043,0.55,3253.8,3252.5,3.07454]
[1736523549254,0.55,3253.6,3252.9,3.07411]
[1736523549459,0.55,3253.6,3252.7,3.07436]
[1736523549657,0.55,3253.6,3252.5,3.07454]
[1736523549658,0.03842152,3253.5,3252.6,3.07444]
[1736523549861,1.3617,3253.4,3252.6,3.07444]
[1736523550124,1.3617,3253.4,3252.4,0.35]
[1736523550125,0.55,3253.2,3252.5,0.02263379]
[1736523550320,0.55,3253.2,3252.8,3.07425]
[1736523550619,0.8117,3253.4,3252.5,3.09715379]
[1736523550620,0.8117,3253.4,3253.3,3.0738]
[1736523550868,0.625,3254.4,3253.8,3.07332]
[1736523550869,0.8302,3253.9,3253.8,3.07332]
[1736523551039,0.03841951,3254.3,3253.8,3.07332]
[1736523551040,0.8302,3254.3,3253.8,3.07332]
[1736523551243,0.625,3254.4,3253.9,0.02260472]
[1736523551459,0.625,3254.4,3254.3,3.07285]
[1736523552730,0.55,3254.3,3253.7,3.07342]
[1736523552929,0.625,3254.4,3253.6,3.07343]
[1736523552930,0.55,3254.1,3253.6,3.07343]
[1736523553177,0.55,3254.1,3253.5,3.07358]
[1736523553464,0.55,3253.9,3253.0,0.60181992]
[1736523553679,0.55,3253.9,3253.1,0.02261751]
[1736523554029,0.03841491,3254.1,3253.1,3.07399]
[1736523554233,0.55,3254.0,3253.0,0.60181992]
[1736523554489,0.03841936,3253.9,3253.3,3.07371]
[1736523554783,0.55,3254.1,3253.6,3.07349]
[1736523554933,0.58841471,3254.1,3253.6,3.07349]
[1736523555149,0.625,3254.4,3253.7,0.02260857]
[1736523555377,0.625,3254.4,3253.7,3.09595857]
[1736523555549,0.625,3254.4,3253.8,3.07332]
[1736523555886,0.625,3254.4,3254.0,3.07308]
[1736523556958,0.625,3254.4,3254.3,3.07285]
[1736523557361,0.625,3254.4,3254.3,3.09542815]
[1736523557559,0.625,3254.4,3254.3,3.07285]
[1736523558659,0.7761,3255.5,3254.4,0.015]
[1736523558839,0.005,3255.5,3255.4,3.07181]
[1736523560963,0.1648217,3256.2,3256.1,3.07115]
[1736523561531,0.1648217,3256.2,3256.1,7.14751744]
[1736523561858,1.7e-06,3256.2,3256.1,7.14751744]
[1736523562222,0.03837694,3258.2,3256.1,7.14751744]
[1736523562223,0.03837744,3257.9,3256.4,0.8178]
[1736523562360,0.03836193,3258.9,3257.2,4.07636744]
[1736523562713,3.87862,3258.8,3257.2,4.69957929]
[1736523562914,1.24006491,3258.7,3257.6,3.06973]
[1736523563198,1.24006491,3258.7,3256.6,3.88848]
[1736523563199,0.81,3258.4,3256.9,3.0704]
[1736523563404,0.81,3258.2,3256.9,0.349]
[1736523563609,3.10746167,3258.3,3256.6,3.8884]
[1736523563610,0.55,3257.7,3256.6,3.07067]
[1736523563773,0.81,3257.4,3256.4,3.07086]
[1736523563952,0.58838169,3257.3,3256.0,0.60684554]
[1736523564166,0.81,3257.4,3256.8,3.07049]
[1736523564495,0.81,3257.4,3256.0,0.60684554]
[1736523564496,0.58837794,3257.3,3256.0,0.60684554]
[1736523564692,0.58837794,3257.3,3256.3,3.07096]
[1736523565013,0.55,3257.1,3256.5,3.07069]
[1736523565192,0.55,3256.9,3255.7,3.42047]
[1736523565508,3.257,3259.6,3255.7,3.42047]
[1736523565509,0.83858369,3257.8,3257.1,3.07012]
[1736523565819,0.8002,3257.8,3257.6,3.06965]
[1736523565977,0.8002,3257.8,3257.7,3.06965]
[1736523566178,0.7509,3258.6,3257.3,0.02251508]
[1736523566493,0.0383667,3258.5,3257.4,3.06988]
[1736523566808,0.0383667,3258.5,3257.0,3.41921]
[1736523566809,0.55,3258.4,3257.0,0.96969367]
[1736523567123,0.55,3258.0,3257.0,0.349]
[1736523567297,0.55,3258.0,3256.6,4.07636744]
[1736523567298,0.55,3257.8,3256.6,4.02036047]
[1736523567614,0.7895,3258.5,3257.9,3.06942]
[1736523568077,0.7895,3258.5,3257.3,0.62555348]
[1736523568485,0.7895,3258.5,3258.0,3.06934]
[1736523568796,0.58836434,3258.4,3256.6,4.42536744]
[1736523568976,0.58836434,3258.4,3257.4,3.06987]
[1736523569184,0.55,3258.2,3257.2,3.07011]
[1736523569382,0.55,3258.0,3257.2,3.07011]
[1736523569596,0.03837212,3257.9,3257.2,3.07011]
[1736523569777,0.795,3257.7,3256.8,0.349]
[1736523569962,0.795,3257.7,3256.9,0.02252669]
[1736523570163,0.7585,3258.7,3257.8,3.06947]
[1736523570378,0.03836515,3258.6,3257.1,3.0]
[1736523570577,0.7585,3258.7,3258.0,3.0693]
[1736523571112,0.03836316,3258.6,3257.9,3.06938]
[1736523571318,0.03836316,3258.6,3257.4,3.06993]
[1736523571479,0.7585,3258.7,3258.4,3.06889]
[1736523571708,0.7585,3258.7,3258.6,3.0688]
[1736523572730,0.7928,3259.1,3258.2,3.09161472]
[1736523573000,0.1648217,3259.4,3259.3,3.06814]
[1736523573351,0.1648217,3259.4,3259.1,3.06832]
[1736523573641,0.1648217,3259.4,3258.2,0.7819]
[1736523573802,0.1648217,3259.4,3258.5,0.60778913]
[1736523573997,0.1648217,3259.4,3259.1,3.06824]
[1736523574629,0.1648217,3259.4,3259.2,3.0682]
[1736523574850,0.1648217,3259.4,3258.5,0.60778913]
[1736523575001,0.1648217,3259.4,3259.3,3.06814]
[1736523578031,0.1648217,3259.4,3258.2,4.1309]
[1736523578239,0.1648217,3259.4,3259.1,3.06823]
[1736523578547,0.1648217,3259.4,3258.8,0.02247932]
[1736523578748,0.1648217,3259.4,3259.0,3.06835]
[1736523579363,0.7618,3259.3,3258.4,3.06889]
[1736523579561,0.7618,3259.3,3257.8,0.7866]
[1736523579562,0.58835507,3259.2,3258.1,3.0692]
[1736523579882,0.58835507,3259.2,3257.6,0.349]
[1736523579883,0.55,3258.8,3257.6,0.349]
[1736523580176,0.55,3258.6,3258.0,3.06934]
[1736523580407,0.03836213,3258.7,3257.6,0.349]
[1736523580592,0.7858,3259.3,3258.3,3.06908]
[1736523580793,0.7858,3259.3,3258.2,3.88737]
[1736523580794,0.1648217,3259.4,3259.3,3.06814]
[1736523582040,0.7858,3260.6,3259.3,0.8182]
[1736523582254,0.012,3260.7,3260.3,3.06715]
[1736523582551,0.012,3260.7,3259.4,0.02245849]
[1736523582552,0.012,3260.7,3259.4,3.06804]
[1736523582752,0.012,3260.7,3259.6,3.06786]
[1736523582992,0.012,3260.7,3259.3,0.8182]
[1736523583293,0.7858,3260.6,3259.8,3.0676]
[1736523583448,0.7858,3260.6,3260.2,3.06728]
[1736523583652,0.7858,3260.6,3260.0,3.06747]
[1736523583877,0.7858,3260.6,3260.3,3.06719]
[1736523584081,0.7858,3260.6,3260.4,3.08954619]
[1736523584293,0.7858,3260.6,3260.5,3.06701]
[1736523584661,0.7858,3260.6,3260.2,0.02244954]
[1736523584662,0.012,3260.7,3260.6,3.06692]
[1736523584867,0.012,3260.7,3259.9,3.06749]
[1736523585065,0.7838,3260.6,3259.3,0.8034]
[1736523585263,0.7838,3260.6,3260.2,3.06729]
[1736523585791,0.7838,3260.6,3259.8,0.02245481]
[1736523585989,0.7838,3260.6,3260.0,3.06748]
[1736523586192,0.7838,3260.6,3260.3,3.06718]
[1736523586397,0.7838,3260.6,3260.1,3.06739]
[1736523586554,0.55,3260.5,3259.3,0.8034]
[1736523586758,0.58834018,3260.5,3259.9,3.06757]
[1736523587280,0.58834018,3260.5,3259.2,0.349]
[1736523587281,0.58834018,3260.5,3259.3,0.02245951]
[1736523587480,0.55,3260.5,3259.3,0.02245951]
[1736523587686,0.55,3260.3,3258.9,1.1524]
[1736523587882,0.03834324,3260.2,3259.7,3.06772]
[1736523588067,0.55,3260.3,3259.7,3.06772]
[1736523588267,0.55,3260.4,3259.4,3.068]
[1736523588493,0.03834324,3260.3,3259.6,3.06782]
[1736523588655,0.03834324,3260.3,3259.7,0.02246562]
[1736523589089,0.03834324,3260.3,3259.7,3.09020562]
[1736523589401,0.03834324,3260.4,3259.5,3.06793]
[1736523590303,0.55,3260.0,3258.6,3.06877]
[1736523590520,0.55,3260.0,3259.2,3.0682]
[1736523590521,0.55,3259.8,3259.2,3.0682]
[1736523590817,0.55,3259.8,3258.8,3.06861]
[1736523590818,1.19344,3259.9,3259.4,3.06796]
[1736523590963,0.8317,3259.9,3259.4,3.06796]
[1736523591894,0.8317,3259.9,3258.5,4.51497644]
[1736523592093,0.8317,3259.9,3259.2,3.0682]
[1736523592425,0.7811,3259.5,3257.4,0.7551]
[1736523592581,0.55,3258.8,3258.0,3.0693]
[1736523592790,0.58835992,3258.8,3257.5,3.06983]
[1736523593001,0.58835992,3258.8,3258.1,3.06925]
[1736523593199,0.03835992,3258.8,3258.1,3.06925]
[1736523593411,0.7974,3259.9,3258.3,3.06908]
[1736523593632,0.7974,3259.9,3258.4,0.02248255]
[1736523593775,0.7974,3259.9,3259.5,3.06787]
[1736523593982,0.7974,3259.9,3259.3,3.06812]
[1736523594287,0.7974,3260.6,3258.7,1.42228908]
[1736523594448,0.03834198,3260.5,3258.7,1.42228908]
[1736523594607,0.7974,3260.1,3259.0,3.06839]
[1736523594804,0.55,3259.8,3258.4,3.06899]
[1736523595021,4.41529,3259.6,3258.6,3.06873]
[1736523595350,0.55,3259.4,3258.5,3.06887]
[1736523595500,0.7974,3259.6,3258.8,3.0686]
[1736523595694,0.7974,3259.6,3258.9,3.06848]
[1736523596000,0.55,3259.5,3258.7,3.06868]
[1736523596325,0.55,3259.5,3258.1,0.61831788]
[1736523596326,0.55,3259.5,3258.9,3.06846]
[1736523596646,0.7974,3259.6,3259.0,0.02248021]
[1736523596808,0.55,3259.9,3259.0,3.09085021]
[1736523597018,0.55,3259.9,3259.2,3.06815]
[1736523597348,0.55,3259.7,3259.0,3.06836]
[1736523597653,0.55,3259.5,3258.6,3.41679]
[1736523597794,0.55,3259.8,3258.7,0.02248494]
[1736523598012,0.03835186,3259.7,3258.4,3.88523]
[1736523598416,0.03835186,3259.7,3258.6,3.06871]
[1736523598417,0.55,3259.5,3258.6,3.06871]
[1736523598678,0.55,3259.3,3257.9,0.8163]
[1736523598815,0.55,3259.1,3257.9,3.06941]
[1736523599171,4.42436744,3260.0,3257.0,0.8163]
[1736523599172,0.55,3258.5,3257.0,0.8163]
[1736523599462,0.8088,3258.3,3257.6,3.06967]
[1736523599769,0.58836834,3258.2,3257.3,0.02251582]
[1736523599927,1.03498917,3258.2,3257.1,0.61708252]
[1736523600133,0.58836834,3258.2,3257.2,3.0701]
[1736523600465,0.55,3257.4,3256.6,0.82605708]
[1736523600676,0.8125,3257.5,3256.7,0.02253352]
[1736523601164,0.8125,3257.5,3256.8,3.07044]
[1736523601371,0.8125,3257.5,3256.9,3.07039]
[1736523601533,0.8125,3257.5,3257.0,0.02252645]
[1736523601770,0.8056,3258.0,3256.8,0.8254]
[1736523601933,0.8056,3259.1,3257.1,4.07636744]
[1736523602135,0.8056,3259.1,3257.4,3.06993]
[1736523602337,0.03835722,3259.0,3257.5,38.348]
[1736523602539,0.8056,3259.1,3257.8,0.61278101]
[1736523602834,0.8056,3259.1,3258.1,3.85188]
[1736523603177,0.55,3258.9,3258.3,3.069]
[1736523603332,0.8056,3259.1,3258.4,0.02249582]
[1736523603532,0.8056,3259.1,3258.0,3.06936]
[1736523603717,0.8056,3259.1,3258.5,3.06886]
[1736523603921,0.8056,3259.1,3258.1,3.06927]
[1736523604117,0.8056,3259.1,3258.5,3.06885]
[1736523604473,0.8056,3259.1,3258.6,3.06879]
[1736523604772,0.8056,3259.1,3258.1,3.06927]
[1736523604773,0.8056,3259.1,3258.3,3.06901]
[1736523605065,0.58835436,3259.0,3258.1,3.06923]
[1736523605268,0.8056,3259.1,3258.2,0.02249658]
[1736523605468,0.8056,3259.1,3258.9,3.06848]
[1736523605708,0.8056,3259.1,3258.3,3.06908]
[1736523606009,0.8056,3259.1,3258.2,3.06909]
[1736523606227,0.8056,3259.1,3258.9,3.06851]
[1736523606500,0.03834818,3260.4,3259.0,0.02247551]
[1736523606810,0.7959,3260.6,3259.8,3.06759]
[1736523607012,0.0383395,3260.5,3259.9,3.06757]
[1736523607174,0.0383395,3260.5,3259.7,3.06767]
[1736523607375,0.0383395,3260.5,3258.9,3.06852]
[1736523607673,0.7959,3260.3,3258.8,0.95150682]
[1736523607898,0.0383443,3260.2,3259.4,3.06803]
[1736523608218,0.55,3260.1,3259.4,3.06803]
[1736523608761,0.7959,3260.3,3259.5,0.02246756]
[1736523608986,0.7959,3260.3,3260.1,3.06731]
[1736523609203,0.7959,3260.3,3260.0,3.06744]
[1736523609414,0.7959,3260.3,3259.3,3.83943]
[1736523609556,0.55,3260.2,3258.9,0.7713]
[1736523609759,0.58834314,3260.2,3259.1,3.06827]
[1736523609956,0.7959,3260.3,3259.2,0.02246543]
[1736523610219,0.7959,3260.3,3260.0,3.06746]
[1736523610501,0.012,3260.7,3260.5,3.06699]
[1736523611075,0.012,3260.7,3259.7,0.7713]
[1736523611076,0.012,3260.7,3260.6,3.08936723]
[1736523611691,0.012,3260.7,3260.6,3.06692]
[1736523611886,0.012,3260.7,3260.4,3.06708]
[1736523612308,0.824,3260.6,3259.3,0.7885]
[1736523612511,0.55,3260.5,3259.4,0.02245557]
[1736523612806,0.55,3260.5,3258.8,3.06859]
[1736523612807,0.7749,3260.4,3258.9,0.8201]
[1736523612989,0.55,3260.1,3258.7,0.62260586]
[1736523613190,0.58834444,3260.1,3258.7,0.62260586]
[1736523613391,0.58834444,3260.1,3259.4,3.06802]
[1736523613392,0.55,3260.1,3259.4,3.06802]
[1736523613588,0.55,3260.1,3259.5,0.02246805]
[1736523613891,0.7749,3260.2,3259.2,0.8321]
[1736523614074,0.7971,3260.6,3260.0,3.06747]
[1736523614806,0.7971,3260.6,3260.1,3.08982138]
[1736523615004,0.7971,3260.6,3260.1,3.06737]
[1736523615301,0.7971,3260.6,3260.2,3.06729]
[1736523615504,0.7971,3260.6,3260.3,0.02245134]
[1736523615708,0.7971,3260.6,3260.0,3.06748]
[1736523615865,0.7971,3260.6,3258.7,0.24999315]
[1736523615866,0.55,3260.5,3259.4,3.06797]
[1736523616062,0.55,3260.5,3259.8,3.06767]
[1736523616292,0.55,3260.3,3259.1,7.14460744]
[1736523616511,0.55,3260.3,3259.3,0.60761515]
[1736523616666,0.0383421,3260.4,3259.3,0.60761515]
[1736523616992,0.55,3260.3,3259.5,3.06788]
[1736523617193,0.55,3260.3,3259.6,0.02246665]
[1736523617504,0.55,3260.3,3259.6,3.06777]
[1736523617505,0.55,3260.1,3259.6,3.06777]
[1736523617811,0.58834525,3260.1,3259.3,3.67573515]
[1736523617961,0.58834525,3260.1,3259.3,0.60761515]
[1736523618401,0.55,3259.9,3258.3,0.8269]
[1736523618563,1.3225,3259.6,3258.3,3.06903]
[1736523618762,0.55,3258.8,3257.9,0.348]
[1736523618978,0.58835965,3258.8,3258.1,3.06926]
[1736523619207,0.55,3258.8,3258.2,0.02249704]
[1736523619420,0.55,3258.8,3258.0,3.06928]
[1736523619607,0.55,3258.6,3257.6,0.62517086]
[1736523619811,0.55,3258.4,3257.2,3.07012]
[1736523620026,0.7662,3258.5,3257.4,3.06993]
[1736523620231,0.7662,3258.5,3257.9,3.06942]
[1736523620367,0.7662,3258.5,3257.6,0.02250617]
[1736523620368,0.55,3258.4,3257.6,0.02250617]
[1736523620567,0.7662,3258.5,3257.3,0.02250976]
[1736523621123,0.7662,3258.5,3257.3,4.0988772]
[1736523621420,0.55,3258.4,3257.3,0.02250221]
[1736523621727,0.7662,3258.5,3257.3,0.02250221]
[1736523622043,0.7662,3258.5,3258.2,3.06909]
[1736523622222,0.7662,3258.5,3258.0,3.06934]
[1736523622544,0.55,3258.4,3257.6,3.06974]
[1736523622681,0.55,3258.2,3256.8,0.8108]
[1736523623041,0.03836519,3258.3,3256.8,0.8108]
[1736523623042,0.55,3258.0,3256.9,0.02251612]
[1736523623181,0.55,3258.0,3257.2,3.0701]
[1736523623518,0.55,3258.0,3257.3,0.02251633]
[1736523623680,0.55,3258.0,3257.4,3.06985]
[1736523624016,0.55,3258.0,3257.5,0.02251635]
[1736523624220,0.55,3258.0,3257.5,3.09232635]
[1736523624473,0.55,3258.0,3257.5,0.02251635]
[1736523625027,0.7933,3258.1,3258.0,3.06936]
[1736523625196,0.7599,3258.5,3258.4,3.06899]
[1736523625529,0.79825814,3259.4,3258.6,3.06871]
[1736523625710,0.7599,3259.4,3258.7,0.02248664]
[1736523625911,0.7599,3259.4,3258.7,3.0687]
[1736523626112,0.03835375,3259.3,3257.9,0.348]
[1736523626283,0.55,3259.2,3258.0,3.06936]
[1736523626487,0.55,3259.2,3258.1,3.09172349]
[1736523626824,0.7599,3259.4,3259.3,3.06814]
[1736523627136,0.625,3259.5,3259.4,3.06804]
[1736523628339,0.625,3259.5,3259.3,3.06813]
[1736523628831,0.625,3259.5,3259.1,3.41633]
[1736523629035,0.625,3259.5,3259.1,0.348]
[1736523629192,0.55,3259.4,3259.1,0.348]
[1736523629534,0.625,3259.5,3259.1,0.348]
[1736523629742,0.625,3259.5,3259.1,0.37048317]
[1736523629897,0.625,3259.5,3259.1,0.348]
[1736523630291,0.625,3259.5,3259.4,3.06804]
[1736523632597,0.625,3259.5,3259.4,3.10878903]
[1736523633393,1e-05,3259.5,3259.4,3.95165945]
[1736523633635,0.012,3260.7,3260.6,3.06692]
[1736523633840,0.012,3260.7,3260.6,3.10097091]
[1736523634841,0.012,3260.7,3260.6,0.03405091]
[1736523635054,0.012,3260.7,3260.3,3.08963509]
[1736523635343,0.012,3260.7,3260.4,0.03402042]
[1736523635642,0.012,3260.7,3260.4,0.05646857]
[1736523635855,0.012,3260.7,3260.4,0.03402042]
[1736523636020,0.55,3260.6,3259.5,0.347]
[1736523636221,0.7969,3260.5,3259.5,0.347]
[1736523636459,0.55,3260.4,3259.6,0.0568304]
[1736523636624,0.55,3260.4,3259.8,3.0676]
[1736523636825,0.7969,3260.5,3259.9,0.0566179]
[1736523637026,0.7969,3260.5,3260.0,3.06748]
[1736523637341,0.55,3260.4,3260.1,0.03401274]
[1736523637654,0.7969,3260.5,3259.5,0.347]
[1736523637854,0.55,3260.0,3259.6,0.03437323]
[1736523638056,0.8067,3259.7,3258.1,4.02621374]
[1736523638260,3.65621048,3259.6,3258.5,3.06885]
[1736523638413,3.65621048,3259.6,3258.3,0.347]
[1736523638414,0.55,3259.4,3258.6,0.05624157]
[1736523638614,0.58835325,3259.4,3258.3,0.347]
[1736523638924,0.55,3259.2,3258.4,0.03390098]
[1736523639122,0.8227,3259.3,3258.5,3.0688]
[1736523639342,0.8227,3259.3,3258.4,0.05639551]
[1736523639343,0.8227,3259.3,3258.7,3.06865]
[1736523639511,0.8227,3259.3,3258.6,0.03375666]
[1736523639711,0.8227,3259.3,3258.8,0.03361236]
[1736523639953,0.8227,3259.3,3258.7,0.03368451]
[1736523640127,0.55,3259.2,3258.9,0.03354022]
[1736523640329,0.55,3259.2,3257.6,3.06974]
[1736523640330,1.3365,3258.9,3258.8,0.03361236]
[1736523640560,1.3365,3258.9,3257.7,7.37064]
[1736523640561,0.7865,3258.9,3258.2,0.02249781]
[1736523640853,4.42336744,3260.5,3258.2,0.7574]
[1736523640854,0.7865,3259.3,3258.2,0.7574]
[1736523641078,0.8132,3260.2,3259.1,3.06829]
[1736523641219,0.8132,3260.2,3259.3,3.0681]
[1736523641415,0.03834379,3260.1,3259.3,3.0681]
[1736523641631,0.03834379,3260.1,3259.0,0.96858972]
[1736523642031,0.8132,3260.2,3259.1,0.0224691]
[1736523642246,0.8132,3260.2,3259.9,3.06756]
[1736523642429,0.8132,3260.2,3259.4,3.06796]
[1736523642633,0.8132,3260.2,3259.5,0.02245904]
[1736523642956,0.7791,3260.6,3260.1,3.06733]
[1736523643160,0.7791,3260.6,3259.9,3.06756]
[1736523643376,0.58833863,3260.5,3259.5,3.06795]
[1736523643539,0.55,3260.3,3259.3,3.06813]
[1736523643735,0.55,3259.9,3258.9,3.06846]
[1736523643955,0.55,3259.7,3259.1,3.0683]
[1736523644150,0.7796,3260.0,3259.2,0.02247775]
[1736523644365,0.55,3259.8,3259.3,3.06806]
[1736523644565,0.55,3259.8,3259.0,0.02247386]
[1736523644786,0.55,3259.8,3259.2,3.06821]
[1736523645090,0.03834735,3259.8,3259.3,3.06809]
[1736523645297,0.55,3259.8,3258.6,3.06871]
[1736523645436,0.55,3259.6,3258.8,3.06861]
[1736523645644,0.55,3259.4,3258.6,3.06879]
[1736523645843,0.03835443,3259.6,3258.7,0.02248801]
[1736523646053,0.7936,3259.7,3258.4,0.347]
[1736523646293,0.7936,3259.7,3258.9,0.7798]
[1736523646504,0.012,3260.7,3258.9,0.7798]
[1736523646505,0.8025,3260.6,3259.0,0.02246431]
[1736523646805,0.8025,3260.6,3259.4,0.6130487]
[1736523646940,0.012,3260.7,3259.4,0.6130487]
[1736523646941,0.012,3260.7,3260.0,0.7798]
[1736523647141,0.012,3260.7,3260.6,3.06692]
[1736523647600,0.012,3260.7,3260.1,0.347]
[1736523647752,0.012,3260.7,3260.2,0.0224482]
[1736523647935,0.012,3260.7,3260.6,3.06692]
[1736523648141,0.012,3260.7,3260.6,3.0893605]
[1736523648688,0.012,3260.7,3260.6,3.8614605]
[1736523648985,0.012,3260.7,3260.6,3.0893605]
[1736523649509,0.012,3260.7,3260.6,3.12690462]
[1736523650243,3.06167797,3262.7,3261.4,3.06615]
[1736523650244,0.7535,3261.9,3261.4,3.06615]
[1736523650580,3.06167797,3262.7,3261.7,0.7922]
[1736523650880,3.06167797,3262.7,3262.5,3.0651]
[1736523651084,3.06167797,3262.7,3262.6,0.03542301]
[1736523651382,3.06167797,3262.7,3262.6,3.06504]
[1736523651543,7.97e-06,3262.7,3262.6,3.06504]
[1736523651740,7.97e-06,3262.7,3262.6,3.89588328]
[1736523651939,3.06278,3265.1,3262.6,3.89588328]
[1736523651940,0.03829802,3264.6,3262.6,1.44102235]
[1736523652139,0.03830074,3264.8,3263.0,4.07636744]
[1736523652447,0.42617781,3264.8,3263.1,0.07354646]
[1736523652645,0.03830074,3264.8,3263.1,0.07354646]
[1736523652862,0.03830074,3264.8,3263.8,3.06387]
[1736523653062,0.03829225,3265.1,3263.9,0.02236365]
[1736523653383,3.06272,3265.1,3263.8,3.0639]
[1736523653583,0.81589084,3265.0,3263.8,3.0639]
[1736523653785,1.20375192,3265.0,3264.0,3.0637]
[1736523653986,4.0063817,3265.9,3264.5,3.06316]
[1736523654291,3.10034291,3265.8,3264.6,3.08550498]
[1736523654530,0.03828291,3265.8,3264.6,0.02234498]
[1736523654655,0.03828291,3265.8,3264.8,3.06294]
[1736523654855,0.9444217,3265.9,3264.7,0.347]
[1736523654856,0.98270255,3265.9,3264.7,0.347]
[1736523655056,0.9444217,3265.9,3265.2,3.06257]
[1736523655275,0.9444217,3265.9,3265.3,0.0223307]
[1736523655691,0.1648217,3265.9,3265.3,0.0223307]
[1736523655901,0.1648217,3265.9,3264.9,4.07636744]
[1736523656104,0.1648217,3265.9,3265.8,3.06203]
[1736523656770,1.7e-06,3265.9,3265.8,7.11993159]
[1736523656967,0.8037,3267.7,3265.9,3.88554]
[1736523657297,0.8037,3268.2,3267.4,3.06052]
[1736523657463,0.1648217,3269.1,3267.4,3.06052]
[1736523657464,0.1648217,3269.1,3268.3,3.0]
[1736523657661,0.60141284,3270.0,3269.1,3.05894]
[1736523657904,0.32008241,3270.5,3270.3,3.05782]
[1736523658081,3.05633,3271.9,3270.1,0.8236]
[1736523658082,0.03822278,3270.7,3270.1,0.8236]
[1736523658261,0.15970744,3270.7,3270.2,0.02222277]
[1736523658660,3.05694,3271.3,3270.2,0.02222277]
[1736523658907,0.8037,3271.5,3270.2,0.02222277]
[1736523659110,0.03821167,3271.3,3269.7,0.0222117]
[1736523659315,0.03821659,3271.4,3269.7,0.0222117]
[1736523659477,0.03821659,3271.4,3269.1,4.85919066]
[1736523659478,0.84191571,3271.5,3269.2,0.02221057]
[1736523659806,0.62418293,3271.3,3268.8,0.61135557]
[1736523659965,0.8037,3270.7,3269.3,3.05867]
[1736523660164,0.03822486,3270.6,3268.6,4.03559066]
[1736523660597,0.8037,3270.7,3269.1,4.03559066]
[1736523660795,0.09502769,3270.8,3268.8,3.05922]
[1736523660796,0.09502769,3270.8,3270.0,3.05808]
[1736523661015,0.09502769,3270.8,3270.2,4.03559066]
[1736523661181,0.09502769,3270.8,3270.6,3.05751]
[1736523661365,7.69e-06,3270.8,3270.7,10.58941582]
[1736523661711,3.05502,3273.3,3271.7,3.05651]
[1736523661910,0.7995,3273.6,3271.7,8.23340066]
[1736523662213,0.25,3274.8,3273.1,0.1654]
[1736523662378,0.25,3274.8,3274.1,4.03559066]
[1736523662579,0.4995,3275.0,3274.2,4.03559066]
[1736523662797,0.4995,3275.0,3274.3,3.0]
[1736523662993,0.4995,3275.0,3274.8,3.05358]
[1736523663199,0.4995,3275.0,3274.9,0.03052717]
[1736523663419,0.4995,3275.0,3274.9,0.82582717]
[1736523663420,0.5796989,3275.0,3274.9,0.82582717]
[1736523663580,0.5796989,3275.0,3274.9,6.19994717]
[1736523663581,8.9e-06,3275.0,3274.9,6.19994717]
[1736523663910,0.01602957,3277.4,3275.1,3.0]
[1736523664111,3.05132,3277.3,3275.7,3.05274]
[1736523664420,0.32276453,3277.2,3275.8,3.08315874]
[1736523664573,0.64016615,3278.0,3275.9,3.05257]
[1736523664776,3.05094,3277.7,3276.0,0.03051641]
[1736523664974,0.01602957,3277.6,3276.8,4.84109066]
[1736523665166,0.1884722,3278.2,3276.9,0.03051545]
[1736523665388,0.1884722,3278.2,3277.2,3.0513]
[1736523665631,0.1884722,3278.2,3276.9,3.05162]
[1736523665839,0.1884722,3278.2,3276.3,3.0522]
[1736523665986,4.03559066,3277.6,3275.2,0.25]
[1736523666316,4.03559066,3277.6,3274.7,4.03559066]
[1736523666317,0.8104,3276.8,3274.3,0.8094]
[1736523666519,0.383,3276.7,3273.6,0.25]
[1736523666821,0.25,3275.4,3273.5,0.61329322]
[1736523666986,7.05162023,3276.6,3273.5,0.61329322]
[1736523666987,0.25,3275.2,3273.5,0.61329322]
[1736523667190,0.25,3275.0,3274.1,3.05421]
[1736523667483,0.25,3274.5,3273.6,0.6147635]
[1736523667700,0.25,3275.3,3275.0,3.05343]
[1736523667885,0.25,3275.3,3274.4,4.03559066]
[1736523667886,0.25,3275.9,3275.1,0.03052934]
[1736523668084,0.84882957,3276.6,3275.3,3.05308]
[1736523668085,0.25,3276.0,3275.3,3.05308]
[1736523668287,0.25,3275.7,3274.5,3.05381]
[1736523668610,0.25,3276.0,3274.6,0.03052455]
[1736523668918,0.25,3275.6,3274.4,4.03559066]
[1736523669130,0.25,3275.6,3274.1,0.6014334]
[1736523669427,0.25,3275.1,3273.5,4.9491889]
[1736523669586,0.25,3274.9,3273.6,3.05474]
[1736523669786,0.25,3274.5,3273.3,0.62118561]
[1736523669984,0.7524,3275.0,3272.8,0.7772]
[1736523669985,0.25,3274.0,3272.8,0.7772]
[1736523670216,0.25,3273.7,3272.7,3.05552]
[1736523670438,0.25,3274.4,3272.4,0.015]
[1736523670734,0.7524,3275.0,3273.7,3.05462]
[1736523670735,0.25,3274.7,3273.7,3.05462]
[1736523671029,0.25,3274.7,3273.5,3.05478]
[1736523671231,0.25,3274.3,3273.0,0.61403078]
[1736523671532,0.25,3274.3,3272.0,2.56309055]
[1736523671533,0.25,3273.6,3272.1,0.7772]
[1736523671711,0.25,3273.8,3272.2,3.08658257]
[1736523671925,0.25,3273.6,3272.1,0.7772]